bitfinex/quotes_SOLUSD_20230105
["timestamp","ask_amount","ask_price","bid_price","bid_amount"]
[1672892230319,72.84337796,13.487,13.472,20.0]
[1672892230535,20.0,13.486,13.472,20.0]
[1672892230746,37.20337796,13.486,13.472,20.0]
[1672892230961,55.65,13.485,13.474,20.0]
[1672892231599,72.85337796,13.485,13.474,20.0]
[1672892231793,55.64,13.488,13.474,20.0]
[1672892232013,55.64,13.488,13.477,20.0]
[1672892232544,117.1677,13.489,13.478,20.0]
[1672892233061,55.63,13.491,13.48,20.0]
[1672892233281,130.3549462,13.492,13.481,17.0]
[1672892233591,130.3549462,13.492,13.482,20.0]
[1672892234648,74.7349462,13.492,13.482,20.0]
[1672892235082,55.63,13.491,13.48,20.0]
[1672892235272,147.55832416,13.492,13.478,20.0]
[1672892235485,72.83337796,13.49,13.477,20.0]
[1672892235711,17.20337796,13.49,13.477,20.0]
[1672892235923,72.84337796,13.489,13.477,20.0]
[1672892236134,74.7349462,13.492,13.478,55.68]
[1672892236342,74.7349462,13.492,13.479,226.4]
[1672892236535,74.7349462,13.492,13.48,20.0]
[1672892236747,74.7349462,13.492,13.481,226.4]
[1672892236967,74.7349462,13.492,13.482,20.0]
[1672892237594,74.7349462,13.492,13.483,20.0]
[1672892237807,74.7349462,13.492,13.485,20.0]
[1672892238029,74.7349462,13.492,13.486,17.0]
[1672892238246,74.7349462,13.492,13.486,243.4]
[1672892238439,74.7349462,13.492,13.487,20.0]
[1672892238647,74.7349462,13.492,13.488,17.0]
[1672892238977,20.0,13.509,13.489,246.4]
[1672892238978,163.8143,13.508,13.489,246.4]
[1672892239184,163.8143,13.508,13.491,20.0]
[1672892239371,55.58,13.502,13.49,55.63]
[1672892239580,55.58,13.502,13.489,20.0]
[1672892240019,55.58,13.502,13.488,17.0]
[1672892240331,37.20337796,13.501,13.488,17.0]
[1672892240534,37.20337796,13.501,13.486,55.65]
[1672892240758,72.79337796,13.5,13.481,75.67]
[1672892241281,17.20337796,13.499,13.481,75.67]
[1672892241489,17.20337796,13.499,13.484,75.66]
[1672892241692,55.6,13.498,13.484,302.06]
[1672892242108,17.20337796,13.5,13.484,75.66]
[1672892242318,72.80337796,13.497,13.484,20.0]
[1672892242529,17.20337796,13.497,13.484,20.0]
[1672892242743,72.81337796,13.496,13.484,20.0]
[1672892242952,17.20337796,13.496,13.477,75.69]
[1672892243171,92.81337796,13.495,13.477,75.69]
[1672892243494,92.81337796,13.495,13.478,246.4]
[1672892243698,17.20337796,13.494,13.478,20.0]
[1672892244129,55.62,13.493,13.478,20.0]
[1672892244529,17.20337796,13.492,13.478,20.0]
[1672892244954,55.63,13.491,13.477,20.0]
[1672892245473,17.20337796,13.493,13.478,55.68]
[1672892245684,117.9426,13.496,13.48,20.0]
[1672892245894,117.9426,13.496,13.481,37.0]
[1672892246104,117.9426,13.496,13.482,20.0]
[1672892246417,117.9426,13.496,13.484,20.0]
[1672892246627,55.61,13.495,13.484,20.0]
[1672892246831,55.61,13.495,13.481,75.67]
[1672892247043,17.22029827,13.494,13.47,20.0]
[1672892247249,20.0,13.493,13.473,20.0]
[1672892247470,75.62,13.493,13.473,20.0]
[1672892247696,17.22029827,13.492,13.474,282.1]
[1672892247900,17.22029827,13.492,13.475,20.0]
[1672892248114,55.63,13.491,13.475,20.0]
[1672892248310,55.63,13.491,13.476,55.69]
[1672892248520,72.85029827,13.491,13.477,20.0]
[1672892248741,72.85029827,13.491,13.477,246.4]
[1672892249248,13.54,13.49,13.471,55.71]
[1672892249459,148.1907,13.49,13.472,40.0]
[1672892249674,72.86029827,13.489,13.472,40.0]
[1672892249891,20.0,13.488,13.47,20.0]
[1672892250111,20.0,13.486,13.47,20.0]
[1672892250424,20.0,13.485,13.467,55.73]
[1672892250636,20.0,13.485,13.465,20.0]
[1672892250637,75.65,13.485,13.466,75.73]
[1672892250825,37.22029827,13.484,13.466,75.73]
[1672892251263,72.88029827,13.483,13.467,226.4]
[1672892251682,133.77549827,13.482,13.467,226.4]
[1672892252086,72.89029827,13.481,13.467,226.4]
[1672892252297,20.0,13.48,13.462,246.4]
[1672892252531,99.42460586,13.48,13.464,226.4]
[1672892252719,20.0,13.478,13.464,226.4]
[1672892253267,72.91029827,13.477,13.465,20.0]
[1672892253786,17.22029827,13.476,13.465,20.0]
[1672892253992,55.69,13.477,13.465,246.4]
[1672892254184,55.68,13.479,13.467,226.4]
[1672892254399,72.89029827,13.48,13.468,20.0]
[1672892254609,55.68,13.478,13.468,20.0]
[1672892254825,72.90029827,13.479,13.468,20.0]
[1672892255029,17.22029827,13.479,13.468,20.0]
[1672892255238,55.68,13.478,13.468,20.0]
[1672892255451,55.68,13.478,13.465,246.4]
[1672892255666,72.90029827,13.478,13.465,20.0]
[1672892255885,72.90029827,13.478,13.463,246.4]
[1672892256088,72.90029827,13.478,13.463,226.4]
[1672892256089,20.0,13.477,13.463,226.4]
[1672892256302,20.0,13.477,13.458,55.77]
[1672892256524,55.69,13.476,13.46,20.0]
[1672892256723,55.69,13.476,13.461,20.0]
[1672892256940,55.69,13.476,13.462,20.0]
[1672892257255,55.69,13.476,13.463,20.0]
[1672892257474,72.91029827,13.476,13.463,20.0]
[1672892257658,72.91029827,13.476,13.461,55.75]
[1672892257659,20.0,13.474,13.461,55.75]
[1672892257871,20.0,13.474,13.459,55.76]
[1672892258100,72.92029827,13.473,13.458,20.0]
[1672892258412,17.22029827,13.472,13.458,20.0]
[1672892258600,20.0,13.471,13.458,20.0]
[1672892258928,75.71,13.471,13.458,20.0]
[1672892259144,92.93029827,13.471,13.457,55.77]
[1672892259548,92.93029827,13.471,13.454,55.78]
[1672892259774,92.93029827,13.471,13.455,20.0]
[1672892260288,155.13460586,13.471,13.454,55.78]
[1672892260501,13.54,13.47,13.449,55.8]
[1672892260712,20.0,13.468,13.448,20.0]
[1672892260915,129.7171,13.467,13.448,20.0]
[1672892261123,264.87170586,13.467,13.446,55.81]
[1672892261337,99.42460586,13.466,13.442,75.83]
[1672892261548,20.0,13.465,13.442,55.83]
[1672892261769,193.87309291,13.465,13.442,282.23]
[1672892261985,75.74,13.465,13.442,226.4]
[1672892262203,75.74,13.465,13.445,20.0]
[1672892262709,75.74,13.465,13.447,226.4]
[1672892262914,92.96029827,13.465,13.448,20.0]
[1672892263149,92.96029827,13.465,13.448,302.21]
[1672892263342,55.74,13.465,13.448,269.18978067]
[1672892263557,17.22029827,13.465,13.449,55.8]
[1672892263768,55.74,13.464,13.444,20.0]
[1672892263976,55.74,13.464,13.443,55.83]
[1672892264181,13.54,13.46,13.437,55.85]
[1672892264397,135.4762,13.459,13.437,55.85]
[1672892264603,20.0,13.458,13.434,20.0]
[1672892264813,20.0,13.457,13.435,226.4]
[1672892265024,92.99029827,13.457,13.436,20.0]
[1672892265237,75.77,13.457,13.436,75.86]
[1672892265563,20.0,13.455,13.436,75.86]
[1672892265760,113.6875,13.454,13.436,75.86]
[1672892265974,186.68779827,13.454,13.436,75.86]
[1672892266180,37.22029827,13.453,13.436,75.86]
[1672892266612,20.0,13.451,13.436,75.86]
[1672892267014,37.22029827,13.451,13.436,55.86]
[1672892267243,20.0,13.45,13.436,55.86]
[1672892267458,75.8,13.45,13.431,55.88]
[1672892267647,20.0,13.448,13.428,20.0]
[1672892268077,17.22029827,13.447,13.43,20.0]
[1672892268284,17.22029827,13.447,13.429,55.89]
[1672892268503,75.81,13.446,13.429,55.89]
[1672892268698,20.0,13.445,13.423,55.91]
[1672892268905,37.22029827,13.445,13.422,75.91]
[1672892269120,191.29069827,13.444,13.424,20.0]
[1672892269337,20.0,13.443,13.424,20.0]
[1672892269547,37.22029827,13.443,13.425,55.9]
[1672892269756,55.83,13.442,13.425,55.9]
[1672892269982,20.0,13.441,13.426,20.0]
[1672892270390,55.84,13.44,13.427,55.89]
[1672892270599,55.84,13.44,13.429,20.0]
[1672892270819,73.05029827,13.442,13.429,20.0]
[1672892271027,55.83,13.443,13.429,20.0]
[1672892271231,17.22029827,13.442,13.429,75.89]
[1672892271437,37.22029827,13.442,13.429,55.89]
[1672892271760,20.0,13.442,13.429,55.89]
[1672892272175,20.0,13.442,13.427,55.89]
[1672892273023,55.83,13.443,13.428,20.0]
[1672892273358,55.83,13.443,13.429,17.0]
[1672892273565,55.83,13.443,13.429,72.89]
[1672892273783,55.83,13.443,13.43,20.0]
[1672892273970,118.2504,13.444,13.443,31.59923839]
[1672892274812,20.0,13.446,13.443,31.59923839]
[1672892275234,17.22029827,13.446,13.443,31.59923839]
[1672892275566,20.0,13.445,13.443,31.59923839]
[1672892276090,118.3347,13.453,13.443,31.59923839]
[1672892276274,17.22029827,13.45,13.443,31.59923839]
[1672892276709,20.0,13.463,13.443,31.59923839]
[1672892276927,55.78,13.455,13.443,31.59923839]
[1672892277115,118.3347,13.457,13.443,31.59923839]
[1672892277326,169.4675,13.454,13.443,31.59923839]
[1672892277561,113.6875,13.454,13.443,31.59923839]
[1672892277767,73.01029827,13.453,13.443,31.59923839]
[1672892277968,55.79,13.453,13.443,31.59923839]
[1672892278593,17.22029827,13.452,13.443,31.59923839]
[1672892279225,55.79,13.451,13.443,31.59923839]
[1672892279651,73.01029827,13.451,13.443,31.59923839]
[1672892279856,55.79,13.452,13.443,31.59923839]
[1672892280079,55.79,13.453,13.443,31.59923839]
[1672892280290,17.22029827,13.452,13.443,31.59923839]
[1672892282186,37.22029827,13.452,13.443,31.59923839]
[1672892282376,55.79,13.451,13.443,26.57103839]
[1672892282713,17.22029827,13.45,13.443,26.57103839]
[1672892283110,55.8,13.449,13.443,26.57103839]
[1672892283535,17.22029827,13.448,13.443,26.57103839]
[1672892283759,20.0,13.447,13.43,55.88]
[1672892283959,215.7458,13.447,13.431,246.4]
[1672892284167,215.7458,13.447,13.431,20.0]
[1672892284396,17.22029827,13.446,13.431,20.0]
[1672892284603,20.0,13.445,13.431,20.0]
[1672892284797,75.82,13.445,13.431,20.0]
[1672892285009,93.04029827,13.445,13.431,20.0]
[1672892285218,75.82,13.445,13.431,20.0]
[1672892285428,20.0,13.445,13.433,226.4]
[1672892285648,20.0,13.445,13.434,20.0]
[1672892286394,37.22029827,13.445,13.434,20.0]
[1672892286583,37.22029827,13.445,13.433,226.4]
[1672892286788,37.22029827,13.445,13.432,55.87]
[1672892286995,37.22029827,13.445,13.432,20.0]
[1672892287205,37.22029827,13.445,13.427,55.89]
[1672892287419,20.0,13.443,13.425,20.0]
[1672892287852,73.05029827,13.442,13.427,226.4]
[1672892288066,73.05029827,13.442,13.428,20.0]
[1672892288401,17.22029827,13.441,13.428,20.0]
[1672892288910,55.84,13.44,13.427,226.4]
[1672892289310,17.22029827,13.439,13.426,20.0]
[1672892289743,17.22029827,13.439,13.426,75.9]
[1672892289958,73.06029827,13.439,13.426,75.9]
[1672892290275,73.06029827,13.439,13.426,55.9]
[1672892290276,17.22029827,13.438,13.426,55.9]
[1672892290500,20.0,13.437,13.426,55.9]
[1672892290800,55.84,13.439,13.437,9.59952984]
[1672892290995,20.0,13.438,13.424,55.91]
[1672892291202,17.22029827,13.436,13.423,55.91]
[1672892291414,17.22029827,13.436,13.422,55.91]
[1672892291626,20.0,13.434,13.421,55.92]
[1672892291849,20.0,13.434,13.419,55.93]
[1672892292064,55.87,13.433,13.417,20.0]
[1672892292692,20.0,13.435,13.417,20.0]
[1672892292693,17.22029827,13.436,13.42,37.3840941]
[1672892292902,119.6,13.44,13.422,20.0]
[1672892293125,37.22029827,13.439,13.424,20.0]
[1672892293431,75.84,13.439,13.424,20.0]
[1672892293631,17.22029827,13.438,13.424,20.0]
[1672892294052,55.85,13.437,13.425,55.9]
[1672892294266,73.07029827,13.438,13.426,20.0]
[1672892294672,17.22029827,13.438,13.426,20.0]
[1672892295100,40.0,13.459,13.427,55.89]
[1672892295305,118.9491,13.452,13.428,263.4]
[1672892295623,37.22029827,13.446,13.428,17.0]
[1672892295838,20.0,13.445,13.429,302.29]
[1672892296045,37.22029827,13.445,13.429,75.89]
[1672892296269,73.04029827,13.444,13.427,55.89]
[1672892296469,20.0,13.443,13.427,55.89]
[1672892296687,37.22029827,13.443,13.426,20.0]
[1672892296991,73.05029827,13.442,13.426,246.4]
[1672892297410,17.22029827,13.441,13.428,20.0]
[1672892297933,55.84,13.44,13.429,17.0]
[1672892298149,55.84,13.441,13.429,17.0]
[1672892298477,20.0,13.441,13.428,20.0]
[1672892298681,55.84,13.44,13.428,20.0]
[1672892298877,55.83,13.442,13.428,20.0]
[1672892299516,73.05029827,13.442,13.428,20.0]
[1672892300370,73.05029827,13.442,13.427,282.29]
[1672892300581,73.05029827,13.442,13.429,20.0]
[1672892300776,55.83,13.442,13.429,57.3840941]
[1672892301109,55.83,13.442,13.429,283.7840941]
[1672892301314,164.1302,13.444,13.43,75.88]
[1672892301522,164.1302,13.444,13.43,55.88]
[1672892301739,55.84,13.441,13.429,37.3840941]
[1672892301942,75.83,13.443,13.429,37.3840941]
[1672892302162,55.84,13.44,13.429,37.3840941]
[1672892302351,17.22029827,13.441,13.43,20.0]
[1672892302559,17.22029827,13.439,13.43,20.0]
[1672892302771,17.22029827,13.439,13.432,20.0]
[1672892303086,17.22029827,13.439,13.431,37.3840941]
[1672892304473,55.83,13.443,13.432,17.0]
[1672892304673,108.3102,13.444,13.433,57.3840941]
[1672892304878,108.3102,13.444,13.434,20.0]
[1672892305851,55.82,13.445,13.438,20.0]
[1672892306027,20.0,13.446,13.438,20.0]
[1672892306363,17.22029827,13.45,13.439,226.4]
[1672892306555,17.22029827,13.45,13.44,20.0]
[1672892307093,168.6749,13.452,13.44,20.0]
[1672892307531,112.8849,13.452,13.44,20.0]
[1672892308348,55.79,13.453,13.44,20.0]
[1672892308565,55.79,13.453,13.442,20.0]
[1672892308880,109.6088,13.454,13.442,246.4]
[1672892309493,109.6088,13.454,13.444,20.0]
[1672892311387,93.01029827,13.453,13.439,226.4]
[1672892311600,93.01029827,13.453,13.437,75.85]
[1672892311802,17.22029827,13.452,13.437,75.85]
[1672892312228,55.79,13.451,13.437,20.0]
[1672892312769,17.22029827,13.45,13.437,20.0]
[1672892312981,17.22029827,13.45,13.436,20.0]
[1672892313174,55.8,13.449,13.436,20.0]
[1672892313600,16.74368715,13.448,13.436,20.0]
[1672892313844,16.74368715,13.448,13.434,302.26]
[1672892314050,75.81,13.447,13.43,282.28]
[1672892314257,301.7249,13.447,13.43,226.4]
[1672892314459,36.74368715,13.446,13.43,226.4]
[1672892314676,20.0,13.445,13.43,226.4]
[1672892314881,20.0,13.444,13.43,226.4]
[1672892315097,20.0,13.444,13.427,20.0]
[1672892315098,36.74368715,13.444,13.427,20.0]
[1672892315307,72.57368715,13.443,13.428,226.4]
[1672892315510,20.0,13.442,13.427,20.0]
[1672892315721,36.74368715,13.442,13.426,20.0]
[1672892316040,72.58368715,13.441,13.426,20.0]
[1672892316449,16.74368715,13.44,13.426,20.0]
[1672892316869,55.84,13.439,13.426,20.0]
[1672892317313,16.74368715,13.438,13.426,20.0]
[1672892317517,16.74368715,13.438,13.427,17.0]
[1672892317725,72.59368715,13.438,13.426,20.0]
[1672892317918,16.74368715,13.438,13.426,20.0]
[1672892318130,16.74368715,13.437,13.426,20.0]
[1672892320257,16.74368715,13.437,13.425,246.4]
[1672892320782,16.74368715,13.437,13.422,226.4]
[1672892320972,16.74368715,13.437,13.424,20.0]
[1672892321714,16.74368715,13.437,13.424,75.91]
[1672892321930,55.84,13.44,13.424,302.31]
[1672892322252,55.83,13.442,13.425,17.0]
[1672892322567,55.83,13.442,13.426,20.0]
[1672892322776,55.83,13.443,13.428,20.0]
[1672892322965,55.84,13.441,13.429,17.0]
[1672892323177,55.83,13.442,13.429,243.4]
[1672892323383,55.83,13.443,13.43,20.0]
[1672892323616,55.84,13.441,13.43,20.0]
[1672892323825,55.83,13.443,13.43,20.0]
[1672892324034,16.74368715,13.441,13.43,20.0]
[1672892324557,55.82,13.444,13.43,20.0]
[1672892324753,55.81,13.446,13.432,226.4]
[1672892324968,55.81,13.446,13.434,20.0]
[1672892326335,16.74368715,13.444,13.434,20.0]
[1672892326539,16.74368715,13.444,13.433,20.0]
[1672892327188,16.74368715,13.444,13.432,226.4]
[1672892327403,16.74368715,13.444,13.431,55.88]
[1672892327715,55.83,13.443,13.429,55.89]
[1672892327921,55.83,13.443,13.429,226.4]
[1672892328126,16.74368715,13.442,13.429,226.4]
[1672892328329,16.74368715,13.442,13.427,55.89]
[1672892328541,55.84,13.441,13.428,20.0]
[1672892328959,16.74368715,13.44,13.428,20.0]
[1672892330644,16.74368715,13.44,13.428,246.4]
[1672892330851,16.74368715,13.44,13.427,20.0]
[1672892331061,55.84,13.439,13.427,20.0]
[1672892331479,16.74368715,13.438,13.427,20.0]
[1672892333286,118.4347,13.44,13.427,20.0]
[1672892333606,118.4347,13.44,13.429,226.4]
[1672892333801,118.4347,13.44,13.43,37.0]
[1672892334012,118.4347,13.44,13.432,20.0]
[1672892335283,55.82,13.444,13.432,20.0]
[1672892335490,20.0,13.445,13.433,17.0]
[1672892336018,55.82,13.444,13.433,17.0]
[1672892336231,55.82,13.444,13.432,20.0]
[1672892336972,55.82,13.444,13.431,302.28]
[1672892337164,55.82,13.444,13.432,17.0]
[1672892341285,12.39,13.46,13.434,226.4]
[1672892341482,16.74368715,13.45,13.435,37.0]
[1672892341694,29.13368715,13.45,13.435,319.26]
[1672892341905,55.8,13.449,13.435,263.4]
[1672892342108,55.8,13.449,13.432,282.27]
[1672892342319,20.0,13.447,13.432,226.4]
[1672892342529,20.0,13.446,13.432,226.4]
[1672892342739,92.55368715,13.446,13.43,20.0]
[1672892342967,16.74368715,13.445,13.43,20.0]
[1672892343368,55.82,13.444,13.43,20.0]
[1672892343580,55.82,13.445,13.431,226.4]
[1672892343803,55.83,13.443,13.432,20.0]
[1672892344017,55.82,13.444,13.434,20.0]
[1672892344337,16.74368715,13.442,13.433,17.0]
[1672892344955,16.74368715,13.442,13.43,20.0]
[1672892345278,72.57368715,13.442,13.429,246.4]
[1672892345489,16.74368715,13.442,13.429,246.4]
[1672892345681,72.58368715,13.441,13.429,20.0]
[1672892346014,16.74368715,13.44,13.429,20.0]
[1672892346227,16.74368715,13.44,13.428,226.4]
[1672892347363,16.74368715,13.44,13.427,20.0]
[1672892347801,16.74368715,13.44,13.428,226.4]
[1672892348121,16.74368715,13.44,13.43,20.0]
[1672892348302,130.52918715,13.44,13.429,17.0]
[1672892348516,130.52918715,13.44,13.427,55.89]
[1672892348741,92.58368715,13.439,13.425,282.3]
[1672892348955,92.58368715,13.439,13.425,226.4]
[1672892349152,16.74368715,13.438,13.425,226.4]
[1672892349363,16.74368715,13.438,13.424,20.0]
[1672892349577,20.0,13.436,13.424,20.0]
[1672892349997,16.74368715,13.435,13.424,20.0]
[1672892350432,16.74368715,13.435,13.422,55.91]
[1672892350636,16.74368715,13.435,13.42,302.32]
[1672892350637,55.86,13.434,13.42,302.32]
[1672892351144,16.74368715,13.433,13.42,302.32]
[1672892351368,132.88878715,13.433,13.42,302.32]
[1672892351915,16.74368715,13.432,13.42,226.4]
[1672892352128,16.74368715,13.432,13.42,20.0]
[1672892352437,16.74368715,13.432,13.42,302.32]
[1672892352645,16.74368715,13.432,13.42,246.4]
[1672892353383,16.74368715,13.432,13.419,226.4]
[1672892353571,72.61368715,13.432,13.419,226.4]
[1672892353780,72.61368715,13.432,13.421,20.0]
[1672892353996,16.74368715,13.431,13.421,20.0]
[1672892354743,116.1451,13.433,13.42,20.0]
[1672892354936,116.1451,13.433,13.421,17.0]
[1672892355142,16.74368715,13.435,13.423,20.0]
[1672892355369,55.85,13.438,13.424,17.0]
[1672892355594,16.74368715,13.437,13.425,20.0]
[1672892356429,16.74368715,13.437,13.426,17.0]
[1672892357264,16.74368715,13.437,13.426,299.3]
[1672892357472,16.74368715,13.437,13.427,20.0]
[1672892358744,16.74368715,13.437,13.426,55.9]
[1672892359160,16.74368715,13.437,13.421,282.32]
[1672892359473,75.86,13.436,13.421,282.32]
[1672892359670,20.0,13.435,13.421,282.32]
[1672892359878,36.74368715,13.435,13.422,20.0]
[1672892360213,72.60368715,13.434,13.422,20.0]
[1672892360724,16.74368715,13.433,13.42,246.4]
[1672892361062,131.36628715,13.433,13.42,246.4]
[1672892361269,131.36628715,13.433,13.42,226.4]
[1672892361456,16.41474401,13.432,13.419,226.4]
[1672892361666,16.41474401,13.432,13.42,20.0]
[1672892361885,16.41474401,13.432,13.422,20.0]
[1672892363469,16.41474401,13.432,13.421,243.4]
[1672892363470,16.41474401,13.432,13.421,17.0]
[1672892364614,16.41474401,13.432,13.421,226.4]
[1672892365360,16.41474401,13.432,13.421,282.32]
[1672892366181,16.41474401,13.432,13.42,17.0]
[1672892366609,16.41474401,13.432,13.42,299.32]
[1672892366817,55.85,13.438,13.421,20.0]
[1672892367040,72.26474401,13.438,13.422,263.4]
[1672892367245,16.41474401,13.438,13.422,263.4]
[1672892367449,16.41474401,13.438,13.425,20.0]
[1672892367659,16.41474401,13.438,13.426,17.0]
[1672892367982,16.41474401,13.438,13.427,20.0]
[1672892369473,113.7855,13.44,13.429,226.4]
[1672892369655,113.7855,13.44,13.43,17.0]
[1672892370071,12.39,13.45,13.431,322.28]
[1672892370072,55.81,13.446,13.431,322.28]
[1672892370282,113.2444,13.447,13.432,17.0]
[1672892370516,113.2444,13.447,13.433,20.0]
[1672892370717,129.65914401,13.447,13.434,263.4]
[1672892371126,129.65914401,13.447,13.436,20.0]
[1672892371447,129.65914401,13.447,13.435,55.86]
[1672892371867,55.81,13.446,13.431,55.88]
[1672892372092,40.0,13.445,13.425,20.0]
[1672892372282,175.31834401,13.445,13.425,20.0]
[1672892372492,20.0,13.443,13.427,20.0]
[1672892373018,20.0,13.441,13.428,55.89]
[1672892373227,20.0,13.441,13.427,20.0]
[1672892373445,118.0398,13.44,13.427,20.0]
[1672892373655,134.45454401,13.44,13.426,282.3]
[1672892373869,16.41474401,13.439,13.427,17.0]
[1672892374087,36.41474401,13.439,13.427,17.0]
[1672892374617,72.26474401,13.438,13.422,282.31]
[1672892374830,20.0,13.436,13.422,226.4]
[1672892375027,20.0,13.435,13.422,226.4]
[1672892375239,92.27474401,13.435,13.422,226.4]
[1672892375557,16.41474401,13.434,13.422,226.4]
[1672892375769,20.0,13.433,13.418,226.4]
[1672892375980,20.0,13.433,13.419,20.0]
[1672892375981,193.9098,13.433,13.419,20.0]
[1672892376192,16.41474401,13.432,13.42,226.4]
[1672892376723,16.41474401,13.432,13.421,20.0]
[1672892377135,16.41474401,13.432,13.418,226.4]
[1672892377466,16.41474401,13.432,13.419,20.0]
[1672892377663,16.41474401,13.432,13.42,226.4]
[1672892378077,16.41474401,13.432,13.421,20.0]
[1672892378809,118.0398,13.433,13.422,17.0]
[1672892379974,20.0,13.431,13.421,226.4]
[1672892380298,16.41474401,13.43,13.419,226.4]
[1672892381434,16.41474401,13.43,13.417,20.0]
[1672892381644,16.41474401,13.43,13.418,226.4]
[1672892382071,20.0,13.429,13.418,226.4]
[1672892382291,20.0,13.429,13.414,226.4]
[1672892382617,20.0,13.427,13.414,226.4]
[1672892382816,20.0,13.427,13.415,282.34]
[1672892383133,16.41474401,13.426,13.414,55.95]
[1672892383447,16.41474401,13.426,13.413,20.0]
[1672892383870,16.41474401,13.426,13.414,282.35]
[1672892384082,16.41474401,13.426,13.414,226.4]
[1672892384927,16.41474401,13.426,13.411,20.0]
[1672892385132,16.41474401,13.426,13.412,20.0]
[1672892385336,16.41474401,13.426,13.414,20.0]
[1672892385545,16.41474401,13.426,13.413,226.4]
[1672892385752,16.41474401,13.426,13.414,55.95]
[1672892386606,16.41474401,13.426,13.413,55.95]
[1672892386921,16.41474401,13.426,13.413,282.35]
[1672892387112,20.0,13.43,13.414,20.0]
[1672892387333,20.0,13.43,13.415,226.4]
[1672892387664,16.41474401,13.429,13.415,226.4]
[1672892387872,16.41474401,13.429,13.416,55.94]
[1672892388067,16.41474401,13.429,13.416,282.34]
[1672892388271,117.4197,13.431,13.417,17.0]
[1672892388489,173.9098,13.433,13.418,226.4]
[1672892388490,118.0398,13.433,13.418,226.4]
[1672892388703,20.0,13.431,13.418,226.4]
[1672892388901,20.0,13.431,13.42,20.0]
[1672892389112,20.0,13.431,13.419,282.33]
[1672892389334,36.41474401,13.431,13.42,17.0]
[1672892389657,20.0,13.431,13.42,17.0]
[1672892389847,20.0,13.431,13.421,55.92]
[1672892390057,20.0,13.431,13.42,55.92]
[1672892390385,36.41474401,13.431,13.42,55.92]
[1672892390587,36.41474401,13.431,13.413,20.0]
[1672892390798,36.41474401,13.431,13.416,20.0]
[1672892391212,36.41474401,13.431,13.417,55.94]
[1672892391423,55.88,13.43,13.416,55.94]
[1672892391759,36.41474401,13.429,13.416,282.34]
[1672892392071,36.41474401,13.429,13.416,226.4]
[1672892392473,36.41474401,13.429,13.417,55.94]
[1672892392684,20.0,13.427,13.416,55.94]
[1672892392912,20.0,13.427,13.414,55.95]
[1672892393105,16.41474401,13.426,13.413,55.95]
[1672892394384,16.41474401,13.426,13.412,20.0]
[1672892394599,16.41474401,13.426,13.413,20.0]
[1672892394805,16.41474401,13.426,13.414,20.0]